[Event "SixDays One Year IM-B 2023"]
[Site "Budapest"]
[Date "2023.09.19"]
[Round "3.1"]
[White "Balint, Vilmos"]
[Black "Meessen, Rudolf"]
[Result "0-1"]
[ECO "A45"]
[WhiteElo "2217"]
[BlackElo "2109"]
[Annotator "ChessBase"]
[PlyCount "60"]
[EventDate "2023.09.18"]
[EventType "tourn"]
[EventCountry "HUN"]
[SourceTitle "playchess.com"]
[Source "ChessBase"]
[SourceQuality "1"]
[TimeControl "5400+30"]

1. d4 {[%emt 0:08:20]} Nf6 {[%emt 0:00:14]} 2. Nc3 {[%emt 0:00:06]} d5 {[%emt 0:00:04]} 3. Bf4 {[%emt 0:00:04]} e6 {[%emt 0:00:34]} 4. e3 {[%emt 0:00:42]} Bb4 {[%emt 0:00:13]} 5. Bd3 {[%emt 0:01:01]} c5 {[%emt 0:00:05]} 6. dxc5 {[%emt 0:00:04]} O-O {[%emt 0:01:19]} 7. Bd6 {[%emt 0:03:02]} Re8 {[%emt 0:00:06]} 8. Nge2 {[%emt 0:00:08]} b6 {[%emt 0:02:31]} 9. Bxb8 {[%emt 0:00:05]} Rxb8 {[%emt 0:00:07]} 10. cxb6 {[%emt 0:00:03]} Qxb6 {[%emt 0:00:51]} 11. O-O {[%emt 0:00:14]} e5 {[%emt 0:00:48]} 12. Bb5 {[%emt 0:02:48]} Rd8 {[%emt 0:00:31]} 13. Ba4 {[%emt 0:01:17]} d4 {[%emt 0:02:43]} 14. exd4 {[%emt 0:00:05]} exd4 {[%emt 0:00:06]} 15. Nb1 {[%emt 0:00:12]} Ba6 {[%emt 0:09:45]} 16. a3 {[%emt 0:01:50]} Bd6 {[%emt 0:00:34]} 17. Bb3 {[%emt 0:01:44]} d3 {[%emt 0:04:15]} 18. Nc1 {[%emt 0:00:18]} dxc2 {[%emt 0:04:44]} 19. Qxc2 {[%emt 0:00:07]} Bxh2+ {[%emt 0:03:08]} 20. Kxh2 {[%emt 0:00:08]} Bxf1 {[%emt 0:00:08]} 21. Kg1 {[%emt 0:00:16]} Ba6 {[%emt 0:05:57]} 22. Nc3 {[%emt 0:00:51]} Qd4 {[%emt 0:09:56]} 23. N1a2 {[%emt 0:00:35]} Qh4 {[%emt 0:02:17]} 24. Nb4 {[%emt 0:00:22]} Bb7 {[%emt 0:02:24]} 25. f3 {[%emt 0:01:09]} Qd4+ {[%emt 0:07:39]} 26. Kf1 {[%emt 0:01:07]} a5 {[%emt 0:00:40]} 27. Ne2 {[%emt 0:00:21]} Qe3 {[%emt 0:01:55]} 28. Na2 {[%emt 0:01:51]} Ba6 {[%emt 0:00:56]} 29. Bc4 {[%emt 0:00:25]} Rbc8 {[%emt 0:02:16]} 30. b3 {[%emt 0:00:43]} Bxc4 {[%emt 0:00:13]} 0-1

[Event "SixDays One Year IM-B 2023"]
[Site "Budapest"]
[Date "2023.09.19"]
[Round "3.2"]
[White "Pap, Gyula"]
[Black "Szabo, Abel"]
[Result "1-0"]
[ECO "B30"]
[WhiteElo "2429"]
[BlackElo "2234"]
[Annotator "ChessBase"]
[PlyCount "87"]
[EventDate "2023.09.18"]
[EventType "tourn"]
[EventCountry "HUN"]
[SourceTitle "playchess.com"]
[Source "ChessBase"]
[SourceQuality "1"]
[TimeControl "5400+30"]

1. e4 {[%emt 0:00:39]} c5 {[%emt 0:00:06]} 2. Nf3 {[%emt 0:00:12]} Nc6 {[%emt 0:00:08]} 3. Nc3 {[%emt 0:01:25]} e5 {[%emt 0:00:11]} 4. Bc4 {[%emt 0:01:49]} d6 {[%emt 0:00:10]} 5. d3 {[%emt 0:03:12]} Be7 {[%emt 0:00:10]} 6. a3 {[%emt 0:01:46]} Nf6 {[%emt 0:01:48]} 7. Ng5 {[%emt 0:03:25]} O-O {[%emt 0:01:25]} 8. h4 {[%emt 0:04:09]} Nd4 {[%emt 0:08:49]} 9. Nd5 {[%emt 0:01:26]} Nxd5 {[%emt 0:09:31]} 10. Bxd5 {[%emt 0:03:03]} Be6 {[%emt 0:02:49]} 11. Bxe6 {[%emt 0:08:41]} Nxe6 {[%emt 0:01:02]} 12. Qh5 {[%emt 0:00:07]} h6 {[%emt 0:00:56]} 13. Nxe6 {[%emt 0:04:17]} fxe6 {[%emt 0:00:08]} 14. Rh3 {[%emt 0:13:25]} Qe8 {[%emt 0:09:34]} 15. Qg4 {[%emt 0:02:58]} Kh7 {[%emt 0:00:45]} 16. Rg3 {[%emt 0:02:26]} Qf7 {[%emt 0:04:50]} 17. Be3 {[%emt 0:00:20]} b5 {[%emt 0:04:25]} 18. h5 {[%emt 0:03:23]} Rac8 {[%emt 0:06:21]} 19. Rf3 {[%emt 0:06:46]} Bf6 {[%emt 0:01:16]} 20. b4 {[%emt 0:00:52]} c4 {[%emt 0:04:05]} 21. d4 {[%emt 0:04:49]} exd4 {[%emt 0:04:47]} 22. Bxd4 {[%emt 0:00:14]} Qe7 {[%emt 0:03:47]} 23. Qg6+ {[%emt 0:03:30]} Kg8 {[%emt 0:02:42]} 24. Bxf6 {[%emt 0:00:57]} Rxf6 {[%emt 0:00:10]} 25. Rxf6 {[%emt 0:00:04]} Qxf6 {[%emt 0:00:13]} 26. Qxf6 {[%emt 0:00:12]} gxf6 {[%emt 0:00:08]} 27. a4 {[%emt 0:06:49]} Rb8 {[%emt 0:05:09]} 28. Kd2 {[%emt 0:01:47]} bxa4 {[%emt 0:06:12]} 29. Rxa4 {[%emt 0:00:31]} d5 {[%emt 0:00:18]} 30. exd5 {[%emt 0:01:04]} exd5 {[%emt 0:00:15]} 31. Kc3 {[%emt 0:01:38]} Kf7 {[%emt 0:00:39]} 32. Kd4 {[%emt 0:01:55]} Ke6 {[%emt 0:01:52]} 33. g4 {[%emt 0:01:28]} Rb6 {[%emt 0:01:58]} 34. c3 {[%emt 0:00:46]} a6 {[%emt 0:02:30]} 35. Ra5 {[%emt 0:00:41]} f5 {[%emt 0:03:06]} 36. f3 {[%emt 0:01:40]} Rd6 {[%emt 0:05:29]} 37. Rc5 {[%emt 0:01:06]} fxg4 {[%emt 0:03:02]} 38. fxg4 {[%emt 0:00:07]} Kf6 {[%emt 0:01:15]} 39. Rc8 {[%emt 0:02:41]} Kg5 {[%emt 0:00:26]} 40. Rg8+ {[%emt 0:00:06]} Kf4 {[%emt 0:00:20]} 41. Rg6 {[%emt 0:00:08]} Rd8 {[%emt 0:00:40]} 42. Rxh6 {[%emt 0:00:29]} Kxg4 {[%emt 0:00:08]} 43. Rxa6 {[%emt 0:00:04]} Kxh5 {[%emt 0:00:12]} 44. Ra5 {[%emt 0:00:04]} 1-0

[Event "SixDays One Year IM-B 2023"]
[Site "Budapest"]
[Date "2023.09.19"]
[Round "3.3"]
[White "To, Nhat Minh"]
[Black "Kozusek, Daniel"]
[Result "1/2-1/2"]
[ECO "B10"]
[WhiteElo "2342"]
[BlackElo "2365"]
[Annotator "ChessBase"]
[PlyCount "80"]
[EventDate "2023.09.18"]
[EventType "tourn"]
[EventCountry "HUN"]
[SourceTitle "playchess.com"]
[Source "ChessBase"]
[SourceQuality "1"]
[TimeControl "5400+30"]

1. e4 {[%emt 0:03:34]} c6 {[%emt 0:03:36]} 2. Nf3 {[%emt 0:00:35]} d5 {[%emt 0:00:10]} 3. d3 {[%emt 0:00:04]} dxe4 {[%emt 0:00:20]} 4. dxe4 {[%emt 0:00:05]} Qxd1+ {[%emt 0:00:04]} 5. Kxd1 {[%emt 0:00:06]} g6 {[%emt 0:00:03]} 6. a4 {[%emt 0:00:53]} Bh6 {[%emt 0:06:49]} 7. Bxh6 {[%emt 0:01:49]} Nxh6 {[%emt 0:00:06]} 8. h3 {[%emt 0:00:06]} f6 {[%emt 0:01:35]} 9. a5 {[%emt 0:00:38]} e5 {[%emt 0:00:46]} 10. Bc4 {[%emt 0:01:02]} Ke7 {[%emt 0:00:51]} 11. Nbd2 {[%emt 0:00:58]} Rd8 {[%emt 0:00:37]} 12. c3 {[%emt 0:05:04]} Nf7 {[%emt 0:01:47]} 13. Kc2 {[%emt 0:03:22]} Nd6 {[%emt 0:00:51]} 14. Be2 {[%emt 0:00:51]} Nd7 {[%emt 0:01:33]} 15. Ne1 {[%emt 0:00:46]} Nc5 {[%emt 0:01:23]} 16. f3 {[%emt 0:00:16]} Be6 {[%emt 0:07:15]} 17. Nd3 {[%emt 0:04:15]} Nxd3 {[%emt 0:01:24]} 18. Bxd3 {[%emt 0:01:57]} Rd7 {[%emt 0:00:20]} 19. Rhd1 {[%emt 0:02:23]} Rad8 {[%emt 0:00:05]} 20. Nf1 {[%emt 0:03:03]} f5 {[%emt 0:03:04]} 21. exf5 {[%emt 0:03:25]} gxf5 {[%emt 0:00:54]} 22. Rd2 {[%emt 0:03:36]} Nc4 {[%emt 0:02:48]} 23. Bxc4 {[%emt 0:02:13]} Bxc4 {[%emt 0:00:13]} 24. Re1 {[%emt 0:03:04]} Rxd2+ {[%emt 0:06:37]} 25. Nxd2 {[%emt 0:00:06]} Bd3+ {[%emt 0:00:02]} 26. Kc1 {[%emt 0:01:24]} Kf6 {[%emt 0:00:13]} 27. g4 {[%emt 0:01:26]} b6 {[%emt 0:07:13]} 28. h4 {[%emt 0:07:38]} h6 {[%emt 0:02:56]} 29. g5+ {[%emt 0:00:52]} hxg5 {[%emt 0:00:23]} 30. hxg5+ {[%emt 0:00:07]} Kxg5 {[%emt 0:00:21]} 31. Rxe5 {[%emt 0:00:16]} Rh8 {[%emt 0:04:02]} 32. b4 {[%emt 0:00:36]} Rh1+ {[%emt 0:01:58]} 33. Kb2 {[%emt 0:00:08]} Rh2 {[%emt 0:00:11]} 34. Kc1 {[%emt 0:00:37]} Kf4 {[%emt 0:03:41]} 35. Re7 {[%emt 0:02:07]} bxa5 {[%emt 0:00:46]} 36. bxa5 {[%emt 0:02:12]} Rh1+ {[%emt 0:03:42]} 37. Kb2 {[%emt 0:00:05]} Rh2 {[%emt 0:05:38]} 38. Kc1 {[%emt 0:00:10]} a6 {[%emt 0:08:26]} 39. Re6 {[%emt 0:03:30]} Rh1+ {[%emt 0:10:29]} 40. Kb2 {[%emt 0:00:01]} Rh2 {[%emt 0:06:31]} 1/2-1/2

[Event "SixDays One Year IM-B 2023"]
[Site "Budapest"]
[Date "2023.09.19"]
[Round "3.4"]
[White "Pagan, Jonathan"]
[Black "Besou, Hussain"]
[Result "0-1"]
[ECO "E10"]
[WhiteElo "2021"]
[BlackElo "2364"]
[Annotator "ChessBase"]
[PlyCount "64"]
[EventDate "2023.09.18"]
[EventType "tourn"]
[EventCountry "HUN"]
[SourceTitle "playchess.com"]
[Source "ChessBase"]
[SourceQuality "1"]
[TimeControl "5400+30"]

1. d4 {[%emt 0:04:02]} Nf6 {[%emt 0:00:12]} 2. c4 {[%emt 0:00:10]} e6 {[%emt 0:00:07]} 3. Nf3 {[%emt 0:00:04]} d5 {[%emt 0:00:04]} 4. g3 {[%emt 0:00:04]} Bb4+ {[%emt 0:00:09]} 5. Nc3 {[%emt 0:00:05]} O-O {[%emt 0:01:03]} 6. Bg2 {[%emt 0:01:02]} dxc4 {[%emt 0:01:59]} 7. O-O {[%emt 0:00:06]} Bxc3 {[%emt 0:01:19]} 8. bxc3 {[%emt 0:00:04]} Nbd7 {[%emt 0:02:24]} 9. Qc2 {[%emt 0:10:39]} Re8 {[%emt 0:16:02]} 10. e4 {[%emt 0:05:55]} h6 {[%emt 0:00:57]} 11. e5 {[%emt 0:14:05]} Nd5 {[%emt 0:00:07]} 12. Re1 {[%emt 0:00:30]} b5 {[%emt 0:17:24]} 13. Bd2 {[%emt 0:00:43]} Bb7 {[%emt 0:02:15]} 14. Qc1 {[%emt 0:00:28]} Qe7 {[%emt 0:00:52]} 15. Nh4 {[%emt 0:04:13]} Qf8 {[%emt 0:22:50]} 16. f4 {[%emt 0:20:49]} f5 {[%emt 0:07:09]} 17. Qb1 {[%emt 0:03:55]} b4 {[%emt 0:05:20]} 18. Qb2 {[%emt 0:00:03]} a5 {[%emt 0:00:54]} 19. Rac1 {[%emt 0:00:32]} N7b6 {[%emt 0:00:25]} 20. Qb1 {[%emt 0:00:56]} Rab8 {[%emt 0:01:33]} 21. Bxd5 {[%emt 0:02:20]} Bxd5 {[%emt 0:01:21]} 22. cxb4 {[%emt 0:00:06]} axb4 {[%emt 0:00:53]} 23. Qxb4 {[%emt 0:01:47]} Qxb4 {[%emt 0:00:42]} 24. Bxb4 {[%emt 0:00:03]} Na4 {[%emt 0:00:05]} 25. a3 {[%emt 0:03:34]} Nb2 {[%emt 0:00:44]} 26. Ra1 {[%emt 0:02:41]} Nd3 {[%emt 0:00:42]} 27. Reb1 {[%emt 0:00:41]} Rb5 {[%emt 0:03:06]} 28. Bd2 {[%emt 0:02:13]} Reb8 {[%emt 0:00:29]} 29. Rxb5 {[%emt 0:00:22]} Rxb5 {[%emt 0:00:06]} 30. a4 {[%emt 0:00:07]} Rb2 {[%emt 0:00:07]} 31. Bc3 {[%emt 0:00:25]} Rc2 {[%emt 0:00:41]} 32. Ba5 {[%emt 0:00:53]} g5 {[%emt 0:00:29]} 0-1

[Event "SixDays One Year IM-B 2023"]
[Site "Budapest"]
[Date "2023.09.19"]
[Round "3.5"]
[White "Valkova, Angelika"]
[Black "Szeberenyi, Adam"]
[Result "1/2-1/2"]
[ECO "D92"]
[WhiteElo "2057"]
[BlackElo "2305"]
[Annotator "ChessBase"]
[PlyCount "28"]
[EventDate "2023.09.18"]
[EventType "tourn"]
[EventCountry "HUN"]
[SourceTitle "playchess.com"]
[Source "ChessBase"]
[SourceQuality "1"]
[TimeControl "5400+30"]

1. d4 {[%emt 0:00:42]} Nf6 {[%emt 0:00:05]} 2. c4 {[%emt 0:00:05]} g6 {[%emt 0:00:03]} 3. Nc3 {[%emt 0:00:05]} d5 {[%emt 0:00:03]} 4. Bf4 {[%emt 0:00:09]} Bg7 {[%emt 0:00:04]} 5. Nf3 {[%emt 0:00:05]} O-O {[%emt 0:00:10]} 6. Rc1 {[%emt 0:00:04]} dxc4 {[%emt 0:00:11]} 7. e4 {[%emt 0:00:06]} c5 {[%emt 0:00:11]} 8. dxc5 {[%emt 0:00:41]} Qa5 {[%emt 0:00:16]} 9. Nd2 {[%emt 0:00:44]} Be6 {[%emt 0:00:47]} 10. Bxc4 {[%emt 0:00:56]} Bxc4 {[%emt 0:00:10]} 11. Nxc4 {[%emt 0:00:04]} Qxc5 {[%emt 0:00:05]} 12. Qe2 {[%emt 0:00:56]} Nc6 {[%emt 0:05:06]} 13. Be3 {[%emt 0:07:22]} Qh5 {[%emt 0:02:19]} 14. Qxh5 {[%emt 0:00:47]} Nxh5 {[%emt 0:02:28]} 1/2-1/2

[Event "SixDays One Year IM-B 2023"]
[Site "Budapest"]
[Date "2023.09.20"]
[Round "4.2"]
[White "Besou, Hussain"]
[Black "Valkova, Angelika"]
[Result "1/2-1/2"]
[ECO "C70"]
[WhiteElo "2364"]
[BlackElo "2057"]
[Annotator "ChessBase"]
[PlyCount "77"]
[EventDate "2023.09.18"]
[EventType "tourn"]
[EventCountry "HUN"]
[SourceTitle "playchess.com"]
[Source "ChessBase"]
[SourceQuality "1"]
[TimeControl "5400+30"]

1. e4 e5 {[%emt 0:01:17]} 2. Nf3 {[%emt 0:00:13]} Nc6 {[%emt 0:00:03]} 3. Bb5 {[%emt 0:00:07]} a6 {[%emt 0:00:04]} 4. Ba4 {[%emt 0:00:05]} Nge7 {[%emt 0:00:05]} 5. c3 {[%emt 0:03:19]} Ng6 {[%emt 0:00:17]} 6. d4 {[%emt 0:00:55]} exd4 {[%emt 0:00:13]} 7. cxd4 {[%emt 0:00:08]} Bb4+ {[%emt 0:00:07]} 8. Nc3 {[%emt 0:01:54]} d5 {[%emt 0:00:30]} 9. exd5 {[%emt 0:00:13]} Bxc3+ {[%emt 0:00:06]} 10. bxc3 {[%emt 0:00:04]} Qxd5 {[%emt 0:00:06]} 11. O-O {[%emt 0:01:26]} O-O {[%emt 0:00:12]} 12. h3 {[%emt 0:04:21]} Na5 {[%emt 0:00:51]} 13. Bb3 {[%emt 0:13:56]} Nxb3 {[%emt 0:01:00]} 14. axb3 {[%emt 0:00:50]} b5 {[%emt 0:05:26]} 15. Be3 {[%emt 0:17:23]} Be6 {[%emt 0:19:16]} 16. Rb1 {[%emt 0:08:46]} Bf5 {[%emt 0:04:09]} 17. Rc1 {[%emt 0:00:45]} Be4 {[%emt 0:02:06]} 18. Ne1 {[%emt 0:05:32]} Qe6 {[%emt 0:06:29]} 19. c4 {[%emt 0:03:52]} c6 {[%emt 0:09:54]} 20. Nd3 {[%emt 0:08:46]} Qf5 {[%emt 0:30:07]} 21. Nc5 {[%emt 0:02:57]} Nh4 {[%emt 0:03:47]} 22. f3 {[%emt 0:04:02]} Qg6 {[%emt 0:00:24]} 23. g4 {[%emt 0:04:14]} Bxf3 {[%emt 0:03:37]} 24. Rxf3 {[%emt 0:00:08]} Nxf3+ {[%emt 0:00:05]} 25. Qxf3 {[%emt 0:00:05]} Rfe8 {[%emt 0:00:41]} 26. Bf2 {[%emt 0:01:55]} h5 {[%emt 0:04:21]} 27. Kg2 {[%emt 0:01:11]} hxg4 {[%emt 0:00:58]} 28. hxg4 {[%emt 0:00:37]} a5 {[%emt 0:00:50]} 29. Nd7 {[%emt 0:03:20]} f6 {[%emt 0:02:09]} 30. cxb5 {[%emt 0:02:29]} cxb5 {[%emt 0:00:26]} 31. Qd5+ {[%emt 0:00:34]} Qf7 {[%emt 0:00:27]} 32. Qxf7+ {[%emt 0:03:56]} Kxf7 {[%emt 0:00:04]} 33. Nb6 {[%emt 0:00:52]} Rab8 {[%emt 0:04:26]} 34. d5 {[%emt 0:00:49]} Re2 {[%emt 0:00:57]} 35. Rc7+ {[%emt 0:00:27]} Kg6 {[%emt 0:00:13]} 36. Nc8 {[%emt 0:00:09]} a4 {[%emt 0:00:27]} 37. bxa4 {[%emt 0:01:14]} bxa4 {[%emt 0:00:03]} 38. Kf3 {[%emt 0:00:31]} Rd2 {[%emt 0:00:31]} 39. Be3 {[%emt 0:03:35]} 1/2-1/2

[Event "SixDays One Year IM-B 2023"]
[Site "Budapest"]
[Date "2023.09.20"]
[Round "4.3"]
[White "Kozusek, Daniel"]
[Black "Pagan, Jonathan"]
[Result "1-0"]
[ECO "D37"]
[WhiteElo "2365"]
[BlackElo "2021"]
[Annotator "ChessBase"]
[PlyCount "49"]
[EventDate "2023.09.18"]
[EventType "tourn"]
[EventCountry "HUN"]
[SourceTitle "playchess.com"]
[Source "ChessBase"]
[SourceQuality "1"]
[TimeControl "5400+30"]

1. d4 {[%emt 0:04:05]} Nf6 {[%emt 0:03:42]} 2. c4 {[%emt 0:00:11]} e6 {[%emt 0:00:06]} 3. Nf3 {[%emt 0:00:04]} d5 {[%emt 0:00:04]} 4. Nc3 {[%emt 0:00:03]} Nbd7 {[%emt 0:00:26]} 5. Bf4 {[%emt 0:00:10]} dxc4 {[%emt 0:00:37]} 6. e3 {[%emt 0:00:39]} Nd5 {[%emt 0:05:08]} 7. Bxc4 {[%emt 0:00:33]} Nxf4 {[%emt 0:00:05]} 8. exf4 {[%emt 0:00:04]} Be7 {[%emt 0:00:39]} 9. O-O {[%emt 0:01:22]} O-O {[%emt 0:00:28]} 10. Re1 {[%emt 0:01:36]} c6 {[%emt 0:07:22]} 11. Qe2 {[%emt 0:01:31]} Nb6 {[%emt 0:05:01]} 12. Bb3 {[%emt 0:00:08]} Nd5 {[%emt 0:00:32]} 13. g3 {[%emt 0:00:31]} Nxc3 {[%emt 0:00:32]} 14. bxc3 {[%emt 0:00:04]} Bf6 {[%emt 0:03:19]} 15. Rad1 {[%emt 0:03:50]} Qc7 {[%emt 0:03:30]} 16. Nd2 {[%emt 0:04:52]} g6 {[%emt 0:01:32]} 17. Ne4 {[%emt 0:01:45]} Bg7 {[%emt 0:00:05]} 18. h4 {[%emt 0:00:03]} h5 {[%emt 0:07:03]} 19. Ng5 {[%emt 0:03:27]} Bd7 {[%emt 0:02:46]} 20. f5 {[%emt 0:00:44]} exf5 {[%emt 0:02:15]} 21. Qe7 {[%emt 0:00:22]} Qd8 {[%emt 0:00:57]} 22. Nxf7 {[%emt 0:05:55]} Qxe7 {[%emt 0:00:22]} 23. Rxe7 {[%emt 0:00:04]} Be8 {[%emt 0:00:45]} 24. Nd6+ {[%emt 0:00:20]} Kh8 {[%emt 0:00:26]} 25. Rde1 {[%emt 0:00:03]} 1-0

[Event "SixDays One Year IM-B 2023"]
[Site "Budapest"]
[Date "2023.09.20"]
[Round "4.4"]
[White "Szabo, Abel"]
[Black "To, Nhat Minh"]
[Result "1/2-1/2"]
[ECO "B97"]
[WhiteElo "2234"]
[BlackElo "2342"]
[Annotator "ChessBase"]
[PlyCount "45"]
[EventDate "2023.09.18"]
[EventType "tourn"]
[EventCountry "HUN"]
[SourceTitle "playchess.com"]
[Source "ChessBase"]
[SourceQuality "1"]
[TimeControl "5400+30"]

1. e4 {[%emt 0:00:03]} c5 {[%emt 0:19:20]} 2. Nf3 {[%emt 0:00:07]} d6 {[%emt 0:00:05]} 3. d4 {[%emt 0:00:10]} cxd4 {[%emt 0:00:03]} 4. Nxd4 {[%emt 0:00:10]} Nf6 {[%emt 0:00:03]} 5. Nc3 {[%emt 0:00:14]} a6 {[%emt 0:00:04]} 6. Bg5 {[%emt 0:00:09]} e6 {[%emt 0:00:04]} 7. f4 {[%emt 0:00:12]} Qb6 {[%emt 0:00:06]} 8. Qd2 {[%emt 0:00:09]} Qxb2 {[%emt 0:00:06]} 9. Rb1 {[%emt 0:00:07]} Qa3 {[%emt 0:00:03]} 10. f5 {[%emt 0:00:15]} Nc6 {[%emt 0:00:08]} 11. fxe6 {[%emt 0:00:10]} fxe6 {[%emt 0:00:02]} 12. Nxc6 {[%emt 0:00:13]} bxc6 {[%emt 0:00:02]} 13. Be2 {[%emt 0:00:14]} Be7 {[%emt 0:00:08]} 14. e5 {[%emt 0:00:08]} dxe5 {[%emt 0:00:11]} 15. Bxf6 {[%emt 0:00:10]} Bxf6 {[%emt 0:00:12]} 16. Bh5+ {[%emt 0:00:09]} g6 {[%emt 0:00:09]} 17. Ne4 {[%emt 0:00:09]} O-O {[%emt 0:00:09]} 18. O-O {[%emt 0:00:08]} Bg7 {[%emt 0:00:24]} 19. Rxf8+ {[%emt 0:00:10]} Qxf8 {[%emt 0:00:55]} 20. Bf3 {[%emt 0:00:10]} a5 {[%emt 0:07:08]} 21. Qc3 {[%emt 0:00:14]} Bd7 {[%emt 0:17:12]} 22. Rb7 {[%emt 0:23:41]} Bc8 {[%emt 0:01:26]} 23. Rb1 {[%emt 0:14:19]} 1/2-1/2

[Event "SixDays One Year IM-B 2023"]
[Site "Budapest"]
[Date "2023.09.20"]
[Round "4.5"]
[White "Balint, Vilmos"]
[Black "Pap, Gyula"]
[Result "0-1"]
[ECO "D00"]
[WhiteElo "2217"]
[BlackElo "2429"]
[Annotator "ChessBase"]
[PlyCount "96"]
[EventDate "2023.09.18"]
[EventType "tourn"]
[EventCountry "HUN"]
[SourceTitle "playchess.com"]
[Source "ChessBase"]
[SourceQuality "1"]
[TimeControl "5400+30"]

1. d4 {[%emt 0:16:09]} d5 {[%emt 0:00:08]} 2. Bf4 {[%emt 0:00:05]} Nf6 {[%emt 0:00:20]} 3. e3 {[%emt 0:00:09]} c5 {[%emt 0:00:24]} 4. c3 {[%emt 0:00:16]} e6 {[%emt 0:04:19]} 5. Nd2 {[%emt 0:00:27]} Qb6 {[%emt 0:02:12]} 6. Qb3 {[%emt 0:02:07]} Be7 {[%emt 0:12:04]} 7. Ngf3 {[%emt 0:03:47]} Bd7 {[%emt 0:00:19]} 8. Be2 {[%emt 0:05:48]} Bc6 {[%emt 0:00:26]} 9. Ne5 {[%emt 0:02:09]} Nbd7 {[%emt 0:00:39]} 10. Nxc6 {[%emt 0:01:20]} bxc6 {[%emt 0:00:23]} 11. O-O {[%emt 0:02:08]} O-O {[%emt 0:04:04]} 12. h3 {[%emt 0:01:04]} Ne8 {[%emt 0:04:39]} 13. e4 {[%emt 0:07:18]} Nd6 {[%emt 0:07:17]} 14. exd5 {[%emt 0:08:19]} cxd5 {[%emt 0:00:24]} 15. dxc5 {[%emt 0:00:08]} Qxc5 {[%emt 0:04:51]} 16. Qa4 {[%emt 0:02:49]} Qc8 {[%emt 0:07:16]} 17. Rfd1 {[%emt 0:05:42]} Nb6 {[%emt 0:20:33]} 18. Qc2 {[%emt 0:02:45]} Qe8 19. b3 {[%emt 0:08:16]} Rc8 {[%emt 0:02:52]} 20. Qd3 {[%emt 0:01:45]} Qc6 {[%emt 0:01:53]} 21. Rac1 {[%emt 0:00:31]} Rfd8 {[%emt 0:00:32]} 22. Qa6 {[%emt 0:00:45]} Nf5 {[%emt 0:07:26]} 23. Bd3 {[%emt 0:07:35]} Bd6 {[%emt 0:01:24]} 24. Bg5 {[%emt 0:00:03]} Be7 {[%emt 0:03:28]} 25. Bxe7 {[%emt 0:00:30]} Nxe7 {[%emt 0:00:03]} 26. Qxa7 {[%emt 0:00:07]} Qd6 {[%emt 0:01:06]} 27. c4 {[%emt 0:10:15]} Ra8 {[%emt 0:00:48]} 28. c5 {[%emt 0:00:56]} Rxa7 {[%emt 0:00:30]} 29. cxd6 {[%emt 0:00:03]} Rxd6 {[%emt 0:01:03]} 30. a4 {[%emt 0:00:30]} e5 {[%emt 0:01:31]} 31. f3 {[%emt 0:00:59]} f5 {[%emt 0:00:45]} 32. Bb5 {[%emt 0:00:30]} Kf7 {[%emt 0:01:32]} 33. Rc5 {[%emt 0:03:58]} Ke6 {[%emt 0:03:07]} 34. a5 {[%emt 0:01:56]} Nd7 {[%emt 0:00:33]} 35. Bxd7+ {[%emt 0:00:04]} Rdxd7 {[%emt 0:00:06]} 36. b4 {[%emt 0:00:17]} Rdb7 {[%emt 0:00:22]} 37. Rb1 {[%emt 0:00:58]} Kd6 {[%emt 0:00:07]} 38. f4 {[%emt 0:00:49]} e4 {[%emt 0:03:18]} 39. Rc3 {[%emt 0:01:25]} Nc6 {[%emt 0:00:49]} 40. b5 {[%emt 0:02:59]} Nd4 {[%emt 0:01:41]} 41. b6 {[%emt 0:02:03]} Rxa5 {[%emt 0:00:47]} 42. Kf2 {[%emt 0:00:35]} Ra2 {[%emt 0:01:07]} 43. Ke1 {[%emt 0:00:07]} Ne6 {[%emt 0:01:45]} 44. g3 {[%emt 0:00:28]} g5 {[%emt 0:00:17]} 45. fxg5 {[%emt 0:00:56]} Nxg5 {[%emt 0:00:19]} 46. h4 {[%emt 0:00:41]} Ne6 {[%emt 0:00:18]} 47. Rd1 {[%emt 0:00:19]} Ke5 {[%emt 0:00:34]} 48. Rc6 {[%emt 0:00:37]} Rb2 {[%emt 0:01:02]} 0-1